fUST/lending_fUST_20250109
["ID","MTS","AMOUNT","RATE_DAILY","PERIOD"]
[348200535,1736382646215,-466.14,0.00020821,3]
[348200536,1736382646224,-500.0,0.00020821,3]
[348200537,1736382646233,-519.26490233,0.00020866,2]
[348200538,1736382646243,-300.0,0.00020898,2]
[348200539,1736382646254,-150.0,0.00021,2]
[348200540,1736382646263,-519.26490233,0.00021003,2]
[348200541,1736382646272,-500.0,0.00021095,3]
[348200542,1736382646281,-1745.7,0.00021095,3]
[348200543,1736382646291,-1442.67,0.00021095,3]
[348200544,1736382646300,-151.0,0.00021095,2]
[348200545,1736382646310,-151.0,0.00021095,2]
[348200546,1736382646319,-901.52,0.00021095,3]
[348200547,1736382646329,-5728.83,0.00021095,3]
[348200548,1736382646338,-701.56,0.00021095,3]
[348200549,1736382646347,-500.0,0.00021095,3]
[348200550,1736382646357,-500.0,0.00021095,3]
[348200551,1736382646367,-596.03,0.00021095,3]
[348200552,1736382646377,-500.0,0.00021095,3]
[348200553,1736382646386,-500.0,0.00021095,3]
[348200554,1736382646395,-828.018129,0.00021095,2]
[348200555,1736382646405,-828.018129,0.00021095,2]
[348200556,1736382646414,-500.0,0.00021095,3]
[348200557,1736382646424,-536.62,0.00021095,3]
[348200558,1736382646433,-500.0,0.00021095,3]
[348200559,1736382646443,-519.26490233,0.00021141,2]
[348200560,1736382646451,-151.0,0.0002121,2]
[348200561,1736382646461,-151.0,0.0002121,2]
[348200562,1736382646471,-267.071855,0.0002121,2]
[348200563,1736382646480,-519.26490233,0.00021279,2]
[348200564,1736382646489,-151.0,0.00021316,2]
[348200565,1736382646499,-617.091,0.0002135,2]
[348200566,1736382646508,-151.0,0.00021369,2]
[348200567,1736382646517,-151.0,0.00021369,2]
[348200568,1736382646526,-500.94079444,0.00021369,3]
[348200569,1736382646536,-151.0,0.00021369,2]
[348200570,1736382646545,-151.0,0.00021369,2]
[348200571,1736382646554,-151.0,0.00021369,2]
[348200572,1736382646564,-169.385964,0.00021369,2]
[348200573,1736382646573,-169.385964,0.00021369,2]
[348200574,1736382646582,-151.0,0.00021369,2]
[348200575,1736382646592,-1745.7,0.00021369,3]
[348200576,1736382646601,-1442.67,0.00021369,3]
[348200577,1736382646611,-901.52,0.00021369,3]
[348200578,1736382646620,-5728.83,0.00021369,3]
[348200579,1736382646629,-701.56,0.00021369,3]
[348200580,1736382646639,-587.62859184,0.00021369,3]
[348200581,1736382646648,-234.411443,0.00021369,2]
[348200582,1736382646658,-234.411443,0.00021369,2]
[348200583,1736382646667,-500.0,0.00021369,3]
[348200584,1736382646676,-596.03,0.00021369,3]
[348200585,1736382646686,-500.0,0.00021369,3]
[348200586,1736382646695,-500.0,0.00021369,3]
[348200587,1736382646705,-615.91,0.00021369,3]
[348200588,1736382646715,-500.0,0.00021369,3]
[348200589,1736382646724,-519.26490233,0.00021417,2]
[348200590,1736382646734,-151.0,0.00021509,2]
[348200591,1736382646743,-519.26490233,0.00021555,2]
[348200592,1736382646752,-1333.0,0.000216,4]
[348200593,1736382646762,-1745.7,0.00021643,3]
[348200594,1736382646771,-1442.67,0.00021643,3]
[348200595,1736382646780,-901.52,0.00021643,3]
[348200596,1736382646790,-3688.66410557,0.00021643,3]
[348200597,1736382646802,-2040.16589443,0.00021643,3]
[348200598,1736382646811,-701.56,0.00021643,3]
[348200599,1736382646821,-500.0,0.00021643,3]
[348200600,1736382646830,-596.03,0.00021643,3]
[348200601,1736382646839,-500.0,0.00021643,3]
[348200602,1736382646848,-500.0,0.00021643,3]
[348200603,1736382646858,-500.0,0.00021643,3]
[348200604,1736382646867,-519.26490233,0.00021693,2]
[348200605,1736382646878,-519.26490233,0.00021831,2]
[348200606,1736382646888,-1745.7,0.00021917,3]
[348200607,1736382646897,-1442.67,0.00021917,3]
[348200608,1736382646907,-901.52,0.00021917,3]
[348200609,1736382646917,-5728.83,0.00021917,3]
[348200610,1736382646927,-701.56,0.00021917,3]
[348200611,1736382646936,-500.0,0.00021917,3]
[348200612,1736382646946,-596.03,0.00021917,3]
[348200613,1736382646956,-330.78332083,0.00021917,3]
[348200614,1736382646965,-500.0,0.00021917,3]
[348200615,1736382646974,-500.0,0.00021917,3]
[348200616,1736382646984,-519.26490233,0.00021969,2]
[348200617,1736382646993,-754.79188119,0.00022,2]
[348200618,1736382647005,-745.20811881,0.00022,2]
[348200619,1736382647015,-1087.61393198,0.00022,2]
[348200624,1736383229343,-153.13,0.000231,31]
[348200625,1736383229369,-153.13,0.000231,31]
[348200626,1736383229395,-153.13,0.000231,31]
[348200627,1736383229419,-153.13,0.000231,31]
[348200628,1736383229443,-153.13,0.000231,31]
[348200629,1736383229468,-153.13,0.000231,31]
[348200630,1736383229493,-0.06,0.000231,31]
[348200632,1736383353930,163.286994,0.00013973,2]
[348200633,1736383481944,421.0,0.00025,120]
[348200635,1736383626145,-184.0976543,0.00019078,2]
[348200636,1736383626170,-175.57692924,0.00019078,2]
[348200637,1736383626196,-300.0,0.00019176,2]
[348200638,1736383626220,-154.79876161,0.00019177,2]
[348200639,1736383626386,-434.15619008,0.00019177,2]
[348200640,1736383627105,-65.84380992,0.00019177,2]
[348200641,1736383627126,-500.0,0.00019177,2]
[348200642,1736383627150,-500.0,0.00019177,2]
[348200643,1736383627172,-500.0,0.00019177,2]
[348200644,1736383627196,-308.24569786,0.00019177,2]
[348200645,1736383627219,-500.0,0.00019177,2]
[348200646,1736383627241,-500.0,0.00019177,2]
[348200647,1736383627262,-500.0,0.00019177,2]
[348200648,1736383627285,-500.0,0.00019177,2]
[348200649,1736383627307,-500.0,0.00019177,2]
[348200650,1736383627329,-500.0,0.00019177,2]
[348200651,1736383627358,-500.0,0.00019177,2]
[348200652,1736383627380,-500.0,0.00019177,2]
[348200653,1736383627401,-500.0,0.00019177,2]
[348200654,1736383627426,-500.0,0.00019177,2]
[348200655,1736383627449,-500.0,0.00019177,2]
[348200656,1736383627472,-151.19109341,0.00019177,2]
[348200657,1736383649100,-348.80890659,0.00019177,2]
[348200658,1736383649124,-500.0,0.00019177,2]
[348200659,1736383649148,-10.53298199,0.00019177,2]
[348200660,1736383767135,-391.39623719,0.00018246,2]
[348200699,1736383832593,-17.79802811,0.00018246,2]
[348200701,1736383832602,-184.09765429,0.00019078,2]
[348200703,1736383832611,-500.0,0.00019173,2]
[348200705,1736383832621,-533.31627251,0.00019173,2]
[348200707,1736383832630,-300.0,0.00019176,2]
[348200708,1736383832640,-194.94262865,0.00019177,2]
[348200709,1736383832649,-519.57885748,0.00019177,2]
[348200710,1736383832659,-500.0,0.00019177,2]
[348200711,1736383832667,-500.0,0.00019177,2]
[348200712,1736383832676,-500.0,0.00019177,2]
[348200713,1736383832686,-500.0,0.00019177,2]
[348200714,1736383832695,-500.0,0.00019177,2]
[348200715,1736383832704,-500.0,0.00019177,2]
[348200716,1736383832713,-500.0,0.00019177,2]
[348200717,1736383832723,-500.0,0.00019177,2]
[348200718,1736383832732,-500.0,0.00019177,2]
[348200719,1736383832741,-500.0,0.00019177,2]
[348200720,1736383832750,-500.0,0.00019177,2]
[348200721,1736383832759,-500.0,0.00019177,2]
[348200722,1736383832769,-500.0,0.00019177,2]
[348200723,1736383832778,-500.0,0.00019177,2]
[348200724,1736383832787,-500.0,0.00019177,2]
[348200725,1736383832796,-500.0,0.00019177,2]
[348200726,1736383832805,-500.0,0.00019177,2]
[348200727,1736383832814,-500.0,0.00019177,2]
[348200728,1736383832823,-169.14594692,0.00019177,2]
[348200729,1736383832832,-500.0,0.00019177,2]
[348200730,1736383832841,-500.0,0.00019177,2]
[348200731,1736383832851,-500.0,0.00019177,2]
[348200732,1736383832860,-253.38361582,0.00019177,2]
[348200733,1736383832869,-536.98523432,0.00019177,2]
[348200734,1736383832879,-430.0293511,0.00019177,2]
[348200735,1736383832888,-500.0,0.00019177,2]
[348200736,1736383832898,-500.0,0.00019177,2]
[348200737,1736383832907,-500.0,0.00019177,2]
[348200738,1736383832916,-500.0,0.00019177,2]
[348200739,1736383832926,-500.0,0.00019177,2]
[348200740,1736383832935,-330.6841215,0.00019177,2]
[348200741,1736383832944,-500.0,0.00019178,2]
[348200742,1736383832953,-500.0,0.00019178,2]
[348200743,1736383832962,-500.0,0.00019178,2]
[348200744,1736383832971,-500.0,0.00019178,2]
[348200745,1736383832980,-500.0,0.00019178,2]
[348200746,1736383832990,-500.0,0.00019178,2]
[348200747,1736383832999,-500.0,0.00019178,2]
[348200748,1736383833008,-500.0,0.00019178,2]
[348200749,1736383833019,-500.0,0.00019178,2]
[348200750,1736383833028,-192.60396246,0.00019178,2]
[348200751,1736383833038,-500.0,0.00019178,2]
[348200752,1736383833048,-500.0,0.00019178,2]
[348200753,1736383833058,-500.0,0.00019178,2]
[348200754,1736383833067,-500.0,0.00019178,2]
[348200755,1736383833077,-500.0,0.00019178,2]
[348200756,1736383833086,-500.0,0.00019178,2]
[348200757,1736383833095,-500.0,0.00019178,2]
[348200758,1736383833105,-500.0,0.00019178,2]
[348200759,1736383833114,-500.0,0.00019178,2]
[348200760,1736383833125,-500.0,0.00019178,2]
[348200761,1736383833134,-500.0,0.00019178,2]
[348200762,1736383833144,-500.0,0.00019178,2]
[348200763,1736383833153,-500.0,0.00019178,2]
[348200764,1736383833163,-421.88416398,0.00019178,2]
[348200765,1736383833173,-500.0,0.00019178,2]
[348200766,1736383833183,-500.0,0.00019178,2]
[348200767,1736383833193,-500.0,0.00019178,2]
[348200768,1736383833202,-500.0,0.00019178,2]
[348200769,1736383833213,-500.0,0.00019178,2]
[348200770,1736383833223,-500.0,0.00019178,2]
[348200771,1736383833233,-500.0,0.00019178,2]
[348200772,1736383833242,-616.23,0.00019178,2]
[348200773,1736383833252,-500.0,0.00019178,2]
[348200774,1736383833262,-500.0,0.00019178,2]
[348200775,1736383833271,-500.0,0.00019178,2]
[348200776,1736383833281,-1137.02,0.00019178,2]
[348200777,1736383833291,-500.0,0.00019178,2]
[348200778,1736383833301,-500.0,0.00019178,2]
[348200779,1736383833311,-500.0,0.00019178,2]
[348200780,1736383833321,-500.0,0.00019178,2]
[348200781,1736383833330,-500.0,0.00019178,2]
[348200782,1736383833340,-500.0,0.00019178,2]
[348200783,1736383833349,-500.0,0.00019178,2]
[348200784,1736383833360,-500.0,0.00019178,2]
[348200785,1736383833370,-500.0,0.00019178,2]
[348200786,1736383833381,-500.0,0.00019178,2]
[348200787,1736383833392,-500.0,0.00019178,2]
[348200788,1736383833402,-500.0,0.00019178,2]
[348200789,1736383833411,-500.0,0.00019178,2]
[348200790,1736383833420,-500.0,0.00019178,2]
[348200791,1736383833431,-500.0,0.00019178,2]
[348200792,1736383833440,-500.0,0.00019178,2]
[348200793,1736383833450,-495.0,0.00019178,2]
[348200794,1736383833460,-500.0,0.00019178,2]
[348200795,1736383833470,-526.16,0.00019178,2]
[348200796,1736383833479,-500.0,0.00019178,2]
[348200797,1736383833488,-500.0,0.00019178,2]
[348200798,1736383833498,-500.0,0.00019178,2]
[348200799,1736383833508,-500.0,0.00019178,2]
[348200800,1736383833518,-500.0,0.00019178,2]
[348200801,1736383833527,-502.25333623,0.00019178,2]
[348200802,1736383833536,-500.0,0.00019178,2]
[348200803,1736383833545,-500.0,0.00019178,2]
[348200804,1736383833555,-500.0,0.00019178,2]
[348200805,1736383833564,-501.47,0.00019178,2]
[348200806,1736383833574,-500.0,0.00019178,2]
[348200807,1736383833584,-500.0,0.00019178,2]
[348200808,1736383833594,-500.0,0.00019178,2]
[348200809,1736383833603,-500.0,0.00019178,2]
[348200810,1736383833613,-500.0,0.00019178,2]
[348200811,1736383833623,-500.0,0.00019178,2]
[348200812,1736383833632,-584.15,0.00019178,2]
[348200813,1736383833642,-500.0,0.00019178,2]
[348200814,1736383833651,-500.0,0.00019178,2]
[348200815,1736383833661,-500.0,0.00019178,2]
[348200816,1736383833670,-634.9,0.00019178,2]
[348200817,1736383833680,-500.0,0.00019178,2]
[348200818,1736383833690,-500.0,0.00019178,2]
[348200819,1736383833699,-500.0,0.00019178,2]
[348200820,1736383833709,-500.0,0.00019178,2]
[348200821,1736383833719,-500.0,0.00019178,2]
[348200822,1736383833729,-500.0,0.00019178,2]
[348200823,1736383833739,-238.31503906,0.00019178,2]
[348200824,1736383833749,-500.0,0.00019178,2]
[348200825,1736383833758,-500.0,0.00019178,2]
[348200826,1736383833767,-500.0,0.00019178,2]
[348200827,1736383833777,-500.0,0.00019178,2]
[348200828,1736383833787,-500.0,0.00019178,2]
[348200829,1736383833796,-500.0,0.00019178,2]
[348200830,1736383833806,-500.0,0.00019178,2]
[348200831,1736383833815,-500.0,0.00019178,2]
[348200832,1736383833825,-500.0,0.00019178,2]
[348200833,1736383833835,-500.0,0.00019178,2]
[348200834,1736383833844,-500.0,0.00019178,2]
[348200835,1736383833854,-500.0,0.00019178,2]
[348200836,1736383833863,-500.0,0.00019178,2]
[348200837,1736383833874,-510.09408565,0.00019178,2]
[348200838,1736383833883,-500.0,0.00019178,2]
[348200839,1736383833893,-500.0,0.00019178,2]
[348200840,1736383833903,-500.0,0.00019178,2]
[348200841,1736383833913,-500.0,0.00019178,2]
[348200842,1736383833922,-500.0,0.00019178,2]
[348200843,1736383833932,-500.0,0.00019178,2]
[348200844,1736383833942,-500.0,0.00019178,2]
[348200845,1736383833951,-500.0,0.00019178,2]
[348200846,1736383833961,-500.0,0.00019178,2]
[348200847,1736383833971,-500.0,0.00019178,2]
[348200848,1736383833981,-500.0,0.00019178,2]
[348200849,1736383833990,-500.0,0.00019178,2]
[348200850,1736383834000,-500.0,0.00019178,2]
[348200851,1736383834010,-500.0,0.00019178,2]
[348200852,1736383834019,-500.0,0.00019178,2]
[348200853,1736383834029,-500.0,0.00019178,2]
[348200854,1736383834039,-571.35,0.00019178,2]
[348200855,1736383834048,-500.0,0.00019178,2]
[348200856,1736383834058,-200.0,0.00019178,2]
[348200857,1736383834068,-468.81985607,0.00019178,2]
[348200858,1736383834077,-393.99957975,0.00019178,2]
[348200859,1736383834087,-623.14,0.00019178,2]
[348200860,1736383834096,-500.0,0.00019178,2]
[348200861,1736383834106,-500.0,0.00019178,2]
[348200862,1736383834116,-500.0,0.00019178,2]
[348200863,1736383834127,-351.38502095,0.00019178,2]
[348200864,1736383834137,-500.0,0.00019178,2]
[348200865,1736383834147,-500.0,0.00019178,2]
[348200866,1736383834157,-249.12937602,0.00019178,2]
[348200867,1736383834167,-500.0,0.00019178,2]
[348200868,1736383834177,-500.0,0.00019178,2]
[348200869,1736383834186,-500.0,0.00019178,2]
[348200870,1736383834196,-500.0,0.00019178,2]
[348200871,1736383834205,-500.0,0.00019178,2]
[348200872,1736383834216,-503.89286223,0.00019178,2]
[348200873,1736383834225,-500.0,0.00019178,2]
[348200874,1736383834334,-4053.04,0.00019178,2]
[348200875,1736383834344,-500.0,0.00019178,2]
[348200876,1736383834354,-500.0,0.00019178,2]
[348200877,1736383834365,-500.0,0.00019178,2]
[348200878,1736383834376,-417.34024327,0.00019178,2]
[348200879,1736383834389,-500.0,0.00019178,2]
[348200880,1736383834399,-500.0,0.00019178,2]
[348200881,1736383834408,-347.28633759,0.00019178,2]
[348200882,1736383834418,-500.0,0.00019178,2]
[348200883,1736383834430,-554.42,0.00019178,2]
[348200884,1736383834440,-500.0,0.00019178,2]
[348200885,1736383834451,-527.49,0.00019178,2]
[348200886,1736383834461,-508.75649602,0.00019178,2]
[348200887,1736383834471,-500.0,0.00019178,2]
[348200888,1736383834481,-500.0,0.00019178,2]
[348200889,1736383834490,-500.0,0.00019178,2]
[348200890,1736383834500,-500.0,0.00019178,2]
[348200891,1736383834509,-500.0,0.00019178,2]
[348200892,1736383834519,-500.0,0.00019178,2]
[348200893,1736383834528,-500.0,0.00019178,2]
[348200894,1736383834538,-500.0,0.00019178,2]
[348200895,1736383834546,-500.0,0.00019178,2]
[348200896,1736383834556,-500.0,0.00019178,2]
[348200897,1736383834566,-275.85281345,0.00019178,2]
[348200898,1736383834577,-500.0,0.00019178,2]
[348200899,1736383834588,-500.0,0.00019178,2]
[348200900,1736383834599,-1068.69,0.00019178,2]
[348200901,1736383834609,-500.0,0.00019178,2]
[348200902,1736383834620,-500.0,0.00019178,2]
[348200903,1736383834630,-370.37278133,0.00019178,2]
[348200904,1736383834640,-500.0,0.00019178,2]
[348200905,1736383834650,-500.0,0.00019178,2]
[348200906,1736383834659,-500.0,0.00019178,2]
[348200907,1736383834668,-500.0,0.00019178,2]
[348200908,1736383834678,-500.0,0.00019178,2]
[348200909,1736383834688,-500.0,0.00019178,2]
[348200910,1736383834697,-500.0,0.00019178,2]
[348200911,1736383834707,-500.0,0.00019178,2]
[348200912,1736383834716,-500.0,0.00019178,2]
[348200913,1736383834725,-500.0,0.00019178,2]
[348200914,1736383834735,-500.0,0.00019178,2]
[348200915,1736383834744,-500.0,0.00019178,2]
[348200916,1736383834753,-500.0,0.00019178,2]
[348200917,1736383834763,-500.0,0.00019178,2]
[348200918,1736383834772,-500.0,0.00019178,2]
[348200919,1736383834782,-500.0,0.00019178,2]
[348200920,1736383834791,-500.0,0.00019178,2]
[348200921,1736383834800,-599.46,0.00019178,2]
[348200922,1736383834809,-500.0,0.00019178,2]
[348200923,1736383834819,-500.0,0.00019178,2]
[348200924,1736383834828,-167.131108,0.00019178,2]
[348200925,1736383834840,-500.0,0.0001945,3]
[348200926,1736383834850,-500.0,0.00019451,3]
[348200927,1736383834861,-500.0,0.00019452,3]
[348200928,1736383834870,-435.58,0.00019452,3]
[348200929,1736383834884,-355.26,0.00019452,3]
[348200930,1736383834897,-1137.02,0.00019452,3]
[348200931,1736383834909,-340.23,0.00019452,3]
[348200932,1736383834919,-500.0,0.00019452,3]
[348200933,1736383834929,-526.16,0.00019452,3]
[348200934,1736383834939,-312.81,0.00019452,3]
[348200935,1736383834948,-500.0,0.00019452,3]
[348200936,1736383834958,-310.61,0.00019452,3]
[348200937,1736383834967,-258.08,0.00019452,3]
[348200938,1736383834977,-519.91,0.00019452,3]
[348200939,1736383834986,-299.22,0.00019452,3]
[348200940,1736383834995,-500.0,0.00019452,3]
[348200941,1736383835004,-623.14,0.00019452,3]
[348200942,1736383835014,-500.0,0.00019452,3]
[348200943,1736383835023,-296.41113346,0.00019452,3]
[348200944,1736383835033,-419.26,0.00019452,3]
[348200945,1736383835043,-2798.69825965,0.00019452,3]
[348200983,1736383838291,-500.0,0.00019178,2]
[348200984,1736383838301,-1254.34174035,0.00019452,3]
[348200985,1736383838310,-171.96,0.00019452,3]
[348200986,1736383838320,-500.0,0.00019452,3]
[348200987,1736383838329,-500.0,0.00019452,3]
[348200988,1736383838339,-500.0,0.00019452,3]
[348200989,1736383838348,-596.78,0.00019452,3]
[348200990,1736383838357,-863.91612715,0.00019452,3]
[348200991,1736383838369,-204.77387285,0.00019452,3]
[348200992,1736383838379,-456.66,0.00019452,3]
[348200993,1736383838391,-608.75,0.00019452,3]
[348200994,1736383838401,-500.0,0.00019452,3]
[348200995,1736383838411,-617.49,0.00019452,3]
[348200996,1736383838419,-641.2572426,0.00019452,3]
[348200997,1736383838430,-453.78,0.00019452,3]
[348200998,1736383838439,-475.85,0.00019452,3]
[348200999,1736383838448,-500.0,0.00019452,3]
[348201000,1736383838457,-481.57,0.00019452,3]
[348201001,1736383838467,-579.08,0.00019452,3]
[348201002,1736383838476,-213.92,0.00019452,2]
[348201003,1736383838485,-1000.0,0.00019721,2]
[348201005,1736383838494,-500.0,0.00019725,3]
[348201007,1736383838504,-517.17,0.00019726,3]
[348201009,1736383838513,-1137.02,0.00019726,3]
[348201010,1736383838523,-526.16,0.00019726,3]
[348201012,1736383838532,-571.84,0.00019726,3]
[348201014,1736383838541,-623.14,0.00019726,3]
[348201016,1736383838551,-4053.04,0.00019726,3]
[348201018,1736383838560,-500.0,0.00019726,3]
[348201020,1736383838570,-500.0,0.00019726,3]
[348201022,1736383838580,-500.0,0.00019726,3]
[348201024,1736383838589,-1068.69,0.00019726,3]
[348201026,1736383838598,-500.0,0.00019726,3]
[348201028,1736383838607,-242.3236213,0.000199,2]
[348201030,1736383838617,-500.0,0.00019999,3]
[348201032,1736383838625,-1137.02,0.0002,3]
[348201034,1736383838635,-526.16,0.0002,3]
[348201036,1736383838644,-623.14,0.0002,3]
[348201038,1736383838653,-4053.04,0.0002,3]
[348201040,1736383838662,-500.0,0.0002,3]
[348201042,1736383838672,-376.27,0.0002,3]
[348201044,1736383838681,-500.0,0.0002,3]
[348201046,1736383838690,-1068.69,0.0002,3]
[348201048,1736383838699,-500.0,0.0002,3]
[348201050,1736383838708,-242.32362108,0.00020038,2]
[348201052,1736383838718,-198.62091613,0.00020136,2]
[348201054,1736383838727,-242.32362108,0.00020176,2]
[348201056,1736383838736,-500.0,0.00020272,3]
[348201058,1736383838745,-1137.02,0.00020273,3]
[348201060,1736383838755,-526.16,0.00020273,3]
[348201062,1736383838764,-623.14,0.00020273,3]
[348201064,1736383838774,-4053.04,0.00020273,3]
[348201066,1736383838783,-500.0,0.00020273,3]
[348201068,1736383838793,-500.0,0.00020273,3]
[348201070,1736383838802,-1068.69,0.00020273,3]
[348201072,1736383838811,-500.0,0.00020273,3]
[348201074,1736383838820,-242.32362108,0.00020314,2]
[348201076,1736383838830,-242.32362108,0.00020452,2]
[348201078,1736383838839,-500.0,0.00020546,3]
[348201080,1736383838848,-275.37995877,0.00020546,2]
[348201082,1736383838857,-1137.02,0.00020547,3]
[348201084,1736383838866,-526.16,0.00020547,3]
[348201086,1736383838876,-623.14,0.00020547,3]
[348201088,1736383838885,-4053.04,0.00020547,3]
[348201090,1736383838895,-321.89614931,0.00020547,3]
[348201092,1736383838904,-500.0,0.00020547,3]
[348201094,1736383838913,-1068.69,0.00020547,3]
[348201096,1736383838923,-500.0,0.00020547,3]
[348201098,1736383838932,-242.32362108,0.0002059,2]
[348201100,1736383838941,-949.67880511,0.00020722,2]
[348201102,1736383838950,-242.32362108,0.00020728,2]
[348201104,1736383838960,-1137.02,0.00020821,3]
[348201106,1736383838969,-526.16,0.00020821,3]
[348201108,1736383838979,-623.14,0.00020821,3]
[348201110,1736383838988,-745.216316,0.00020821,2]
[348201112,1736383838997,-4053.04,0.00020821,3]
[348201114,1736383839007,-745.216316,0.00020821,2]
[348201116,1736383839016,-151.0,0.00020821,2]
[348201118,1736383839025,-500.0,0.00020821,3]
[348201120,1736383839034,-1068.69,0.00020821,3]
[348201122,1736383839043,-500.0,0.00020821,3]
[348201124,1736383839053,-151.0,0.00020821,2]
[348201126,1736383839062,-242.32362108,0.00020866,2]
[348201128,1736383839071,-591.234,0.000209,2]
[348201130,1736383839080,-226.16140695,0.00021,2]
[348201132,1736383839089,-242.32362108,0.00021003,2]
[348201135,1736383839098,-151.0,0.00021095,2]
[348201137,1736383839107,-151.0,0.00021095,2]
[348201138,1736383839117,-151.0,0.00021095,2]
[348201140,1736383839127,-1137.02,0.00021095,3]
[348201142,1736383839136,-526.16,0.00021095,3]
[348201144,1736383839145,-623.14,0.00021095,3]
[348201146,1736383839155,-4053.04,0.00021095,3]
[348201148,1736383839164,-500.0,0.00021095,3]
[348201150,1736383839173,-1068.69,0.00021095,3]
[348201152,1736383839182,-500.0,0.00021095,3]
[348201154,1736383839191,-202.364651,0.00021141,2]
[348201156,1736383839200,-151.0,0.00021141,2]
[348201158,1736383839210,-242.32362108,0.00021141,2]
[348201161,1736383839220,-160.0,0.00021224,3]
[348201162,1736383839230,-242.32362108,0.00021279,2]
[348201164,1736383839240,-353.0175454,0.00021288,2]
[348201166,1736383839250,-353.0175454,0.00021288,2]
[348201168,1736383839261,-353.0175454,0.00021288,2]
[348201170,1736383839270,-353.0175454,0.00021288,2]
[348201172,1736383839279,-353.0175454,0.00021288,2]
[348201174,1736383839288,-508.310639,0.00021288,2]
[348201176,1736383839297,-500.0,0.00021368,3]
[348201178,1736383839307,-265.87597182,0.00021368,3]
[348201180,1736383839315,-1137.02,0.00021369,3]
[348201182,1736383839324,-526.16,0.00021369,3]
[348201184,1736383839334,-623.14,0.00021369,3]
[348201186,1736383839344,-4053.04,0.00021369,3]
[348201188,1736383839353,-500.0,0.00021369,3]
[348201190,1736383839362,-1068.69,0.00021369,3]
[348201192,1736383839371,-500.0,0.00021369,3]
[348201194,1736383839390,-242.32362108,0.00021417,2]
[348201196,1736383839399,-619.0,0.000215,2]
[348201198,1736383839410,-504.37403643,0.0002155,2]
[348201200,1736383839419,-500.0,0.0002155,2]
[348201202,1736383839429,-500.0,0.0002155,2]
[348201204,1736383839439,-500.0,0.0002155,2]
[348201207,1736383839448,-500.0,0.0002155,2]
[348201208,1736383839458,-242.32362108,0.00021555,2]
[348201211,1736383839468,-153.0,0.00021562,2]
[348201212,1736383839478,-153.0,0.00021562,2]
[348201215,1736383839487,-153.6137553,0.00021562,2]
[348201216,1736383839496,-153.0,0.00021562,2]
[348201218,1736383839506,-153.0,0.00021562,2]
[348201221,1736383839515,-153.0,0.00021562,2]
[348201223,1736383839524,-153.0,0.00021562,2]
[348201225,1736383839533,-153.0,0.00021562,2]
[348201235,1736383839543,-306.0,0.00021562,2]
[348201237,1736383839634,-306.0,0.00021562,2]
[348201239,1736383839643,-1137.02,0.00021643,3]
[348201241,1736383839653,-151.0,0.00021643,2]
[348201243,1736383839662,-151.0,0.00021643,2]